bitfinex-derivatives/quotes_ETHF0:USTF0_20250726
["timestamp","ask_amount","ask_price","bid_price","bid_amount"]
[1753547920029,1.0893,3728.7,3728.6,2.15662]
[1753547920526,1.7888,3728.7,3728.6,2.15662]
[1753547921328,1.7888,3728.7,3728.6,1.98792]
[1753547921627,2.9585,3728.7,3728.6,1.98792]
[1753547922324,2.2551,3728.7,3728.6,1.98792]
[1753547922524,1.7888,3728.7,3728.6,1.98792]
[1753547922724,1.7888,3728.7,3728.6,2.15662]
[1753547923827,2.9585,3728.7,3728.6,1.71792]
[1753547925831,2.9585,3728.7,3728.6,1.98792]
[1753547928427,0.5334,3728.7,3728.6,2.15662]
[1753547928725,1.9588,3729.2,3729.1,1.30355]
[1753547928931,1.9588,3729.2,3729.1,1.98785]
[1753547929232,2.9585,3729.2,3729.1,1.98785]
[1753547931727,0.5334,3729.2,3729.1,2.15655]
[1753547931933,3.7412,3729.4,3729.3,2.15652]
[1753547932331,0.5334,3729.7,3729.6,2.15647]
[1753547932629,0.3564,3730.2,3730.1,1.3034]
[1753547932827,2.4251,3730.2,3730.1,1.9877]
[1753547933225,2.9585,3730.2,3730.1,1.9877]
[1753547940442,2.9585,3730.2,3730.1,1.7177]
[1753547941136,2.9351,3730.1,3729.7,3.9154]
[1753547941338,2.9351,3729.8,3729.7,0.53605]
[1753547942541,2.9351,3729.8,3729.7,1.70735]
[1753547942938,2.9351,3729.8,3729.7,1.94615]
[1753547943240,0.5216,3729.8,3729.7,2.09545]
[1753547943942,1.7618,3729.8,3729.7,1.94615]
[1753547945749,2.2263,3729.8,3729.7,1.94615]
[1753547945947,2.9351,3729.8,3729.7,1.94615]
[1753547947941,2.9351,3729.8,3729.7,5.15395]
[1753547948744,1.7618,3729.8,3729.7,5.30325]
[1753547949351,1.7618,3729.8,3729.7,5.15395]
[1753547949851,2.4135,3730.3,3730.2,1.4101]
[1753547950055,1.7047,3730.3,3730.2,14.82609]
[1753547950351,2.2263,3730.3,3730.2,14.82609]
[1753547951050,2.9351,3730.3,3730.2,14.82609]
[1753547951244,2.9351,3730.3,3730.2,13.41599]
[1753547951442,2.9351,3730.3,3730.2,0.53599]
[1753547951653,1.1848,3729.8,3729.7,3.6715]
[1753547951854,2.9351,3729.8,3729.7,17.08656]
[1753547952548,2.9351,3729.8,3729.7,16.5505]
[1753547952748,2.9351,3729.8,3729.7,17.08656]
[1753547953553,2.9351,3729.8,3729.7,13.87876]
[1753547955649,2.9351,3729.8,3729.7,14.58636]
[1753547955849,2.9351,3729.8,3729.7,1.70736]
[1753547956850,2.9351,3729.8,3729.7,0.99976]
[1753547958654,2.9351,3729.8,3729.7,1.70736]
[1753547958855,2.9351,3729.8,3729.7,0.53606]
[1753547959247,2.9351,3729.8,3729.4,0.7076]
[1753547959452,2.9351,3729.1,3729.0,25.11726]
[1753547959652,2.9351,3729.1,3729.0,37.99626]
[1753547967464,2.9351,3729.1,3729.0,14.82526]
[1753547968165,2.9351,3729.1,3729.0,1.86556]
[1753547968465,2.9351,3729.1,3729.0,14.74456]
[1753547968954,0.5216,3729.1,3729.0,14.87466]
[1753547969153,1.2288,3729.5,3729.4,1.9956]
[1753547969357,0.8805,3729.9,3729.8,0.53605]
[1753547969560,0.5426,3729.9,3729.8,14.87455]
[1753547969763,4.9701,3730.4,3730.3,1.86537]
[1753547969957,5.75875116,3730.4,3730.3,14.74437]
[1753547970363,6.0838,3730.4,3729.6,0.1301]
[1753547970557,2.876,3729.8,3729.7,14.74446]
[1753547974072,2.876,3729.8,3729.7,1.86546]
[1753547974564,2.876,3729.8,3729.7,14.74346]
[1753547975373,0.5426,3729.8,3729.7,14.87046]
[1753547975873,0.8896,3729.8,3729.7,14.87046]
[1753547976175,2.876,3729.8,3729.7,14.74346]
[1753547978968,2.876,3729.8,3729.7,14.74246]
[1753547979169,2.2058,3729.8,3729.7,14.74246]
[1753547979974,2.2058,3729.8,3729.7,1.86546]
[1753547980170,2.2058,3729.8,3729.7,14.74246]
[1753547980675,1.7623,3729.8,3729.7,14.74246]
[1753547980874,2.2058,3729.8,3729.7,14.74246]
[1753547981167,2.876,3729.8,3729.7,14.74246]
[1753547981377,2.2058,3729.8,3729.7,1.86546]
[1753547981576,1.7623,3729.8,3729.7,1.86546]
[1753547981776,0.5426,3729.8,3729.7,14.86946]
[1753547982169,2.3425,3730.4,3730.3,1.86037]
[1753547982376,2.876,3730.4,3730.3,1.86037]
[1753547983678,1.1297,3729.8,3729.7,5.06826]
[1753547983880,2.876,3729.8,3729.7,17.94526]
[1753547985472,2.876,3729.8,3729.7,17.94426]
[1753547985676,2.876,3729.8,3729.7,14.73646]
[1753547986980,1.2037,3729.7,3729.4,0.6806]
[1753547987177,2.2058,3729.5,3729.3,0.53611]
[1753547987377,2.876,3729.4,3729.3,0.53611]
[1753547988278,2.876,3729.4,3729.3,1.86051]
[1753547990985,2.876,3729.4,3729.3,0.4406]
[1753547991187,1.1297,3729.4,3729.1,0.53614]
[1753547991580,1.66581,3729.4,3729.1,0.53614]
[1753547991782,2.876,3729.2,3729.1,0.53614]
[1753547992087,2.876,3729.2,3729.1,13.41214]
[1753547994190,2.876,3729.2,3729.1,0.53614]
[1753547994487,2.876,3729.2,3729.1,13.41314]
[1753547997993,2.876,3729.2,3729.1,14.57194]
[1753547999485,2.876,3729.2,3729.1,14.75004]
[1753548005695,0.5426,3729.2,3729.1,18.06914]
[1753548005886,1.6904,3729.6,3729.5,1.87299]
[1753548006088,1.6904,3729.6,3729.5,14.86129]
[1753548006590,2.1374,3729.6,3729.5,14.74999]
[1753548006788,2.8005,3729.6,3729.5,14.74999]
[1753548009288,1.189,3729.5,3729.1,3.9118]
[1753548009483,1.7808,3729.2,3729.1,0.53613]
[1753548009795,1.7808,3729.0,3728.9,1.69498]
[1753548010095,2.8005,3729.0,3728.9,14.57098]
[1753548010294,2.8005,3729.0,3728.9,1.69498]
[1753548010485,2.8005,3729.0,3728.9,14.74908]
[1753548012889,1.6904,3729.0,3728.9,14.74908]
[1753548013194,3.2078,3729.8,3728.9,14.74908]
[1753548013195,2.1374,3729.5,3729.4,1.3369]
[1753548013392,2.1374,3729.5,3729.4,14.749]
[1753548013791,2.8005,3729.5,3729.4,14.749]
[1753548014697,3.33659,3729.5,3729.4,13.3308]
[1753548014993,2.8005,3729.5,3729.4,13.3308]
[1753548015793,2.8005,3729.5,3729.4,0.4548]
[1753548015994,2.8005,3729.1,3729.0,14.56995]
[1753548017392,2.8005,3729.1,3729.0,14.74805]
[1753548019895,6.0083,3729.4,3729.3,1.16902]
[1753548020097,6.0083,3729.4,3729.3,1.87302]
[1753548020596,2.8005,3729.4,3729.3,1.87302]
[1753548020787,0.4938,3729.4,3729.3,1.98432]
[1753548022302,2.8005,3729.4,3729.3,1.87302]
[1753548024097,2.8005,3729.4,3729.3,14.74802]
[1753548027195,2.8005,3729.4,3729.3,1.87302]
[1753548027698,2.8005,3729.4,3729.3,1.1588]
[1753548027897,2.8005,3729.4,3729.3,1.69492]
[1753548028500,3.3366,3729.4,3729.3,1.1588]
[1753548028700,0.53612,3729.3,3729.2,12.875]
[1753548028902,2.7867,3729.3,3729.2,0.53612]
[1753548029302,2.7867,3729.3,3729.2,0.99512]
[1753548029503,2.7867,3729.3,3729.2,1.66592]
[1753548029798,1.1025,3729.3,3728.9,3.2078]
[1753548030004,2.7867,3728.6,3728.5,24.4483]
[1753548030399,2.7867,3728.6,3728.5,37.3233]
[1753548030600,2.7867,3728.6,3728.5,37.85953]
[1753548030906,1.1967,3728.6,3728.5,37.85953]
[1753548031098,0.5258,3728.6,3728.5,37.95233]
[1753548033603,0.6709,3729.2,3729.1,0.8193]
[1753548033799,2.7867,3729.2,3729.1,1.81445]
[1753548036010,2.7867,3729.2,3729.1,1.2783]
[1753548036309,2.7867,3729.2,3729.1,1.1298]
[1753548036808,2.7867,3729.2,3729.1,0.459]
[1753548037103,2.7867,3729.2,3729.0,12.875]
[1753548037310,2.7867,3728.8,3728.7,4.203]
[1753548037509,2.7867,3728.8,3728.7,13.334]
[1753548038109,2.7867,3728.8,3728.7,13.8702]
[1753548039312,2.7867,3728.8,3728.7,0.9952]
[1753548039511,2.7867,3728.8,3728.7,13.8702]
[1753548039712,2.7867,3728.8,3728.7,0.9952]
[1753548039912,2.7867,3728.8,3728.7,13.8702]
[1753548042813,2.7867,3728.8,3728.7,14.541]
[1753548043203,2.7867,3728.8,3728.7,14.6779]
[1753548044112,0.5258,3729.1,3729.0,1.88836]
[1753548044309,0.5258,3729.4,3729.3,1.42932]
[1753548044610,0.5258,3729.4,3729.3,14.76332]
[1753548049918,1.7082,3729.4,3729.3,14.67782]
[1753548050115,2.7867,3729.4,3729.3,14.67782]
[1753548050511,2.7867,3729.4,3729.3,1.80282]
[1753548050721,2.7867,3729.4,3729.3,14.53892]
[1753548052716,2.7867,3729.4,3729.3,14.67582]
[1753548053622,0.5258,3729.4,3729.3,14.76132]
[1753548055322,1.7082,3729.4,3729.3,14.67582]
[1753548060025,2.7831,3730.3,3730.2,0.53599]
[1753548060227,2.7831,3730.3,3730.2,1.16689]
[1753548061230,2.7831,3730.2,3730.1,0.536]
[1753548063822,2.7831,3729.6,3729.5,1.58609]
[1753548064428,2.7831,3729.6,3729.5,1.70559]
[1753548064826,1.6914,3729.6,3729.5,4.91339]
[1753548065027,0.5112,3729.6,3729.5,4.98809]
[1753548065731,2.7831,3729.6,3729.5,4.91339]
[1753548071231,2.1383,3729.6,3729.5,4.91339]
[1753548071437,1.173,3729.6,3729.5,4.98809]
[1753548072134,0.8364,3729.6,3729.5,4.98809]
[1753548072334,0.8364,3729.6,3729.5,17.85709]
[1753548072739,0.53594,3730.6,3729.5,17.85709]
[1753548072740,0.8436,3730.2,3730.1,1.2972]
[1753548072941,0.8436,3730.2,3730.1,2.4227]
[1753548073743,0.8436,3730.2,3730.1,1.9281]
[1753548073744,2.2719,3730.2,3730.1,1.9281]
[1753548074043,2.2719,3730.2,3730.1,13.8231]
[1753548074741,2.7831,3730.2,3730.1,14.454]
[1753548075341,2.7831,3730.2,3730.1,14.7961]
[1753548076243,2.7831,3730.2,3730.1,15.2907]
[1753548078934,2.7831,3730.2,3730.1,2.4227]
[1753548081049,2.7831,3730.2,3730.1,1.9281]
[1753548081250,2.7831,3730.2,3730.1,1.586]
[1753548081747,2.7831,3730.2,3730.1,1.9281]
[1753548085747,2.7831,3730.2,3730.1,0.536]
[1753548085946,1.1087,3730.2,3730.0,0.53601]
[1753548086140,2.7831,3730.1,3729.9,0.53603]
[1753548086351,1.6271,3730.0,3729.9,0.53603]
[1753548086648,2.7831,3730.0,3729.9,0.53603]
[1753548087949,0.3312,3729.6,3729.5,0.3279]
[1753548088152,2.6925,3729.6,3729.5,0.53609]
[1753548088351,0.9797,3729.5,3729.4,0.5361]
[1753548088546,2.6925,3729.5,3729.4,0.5361]
[1753548091856,2.6925,3729.5,3729.3,0.53611]
[1753548092151,2.6925,3729.4,3729.3,1.19271]
[1753548092452,2.6925,3729.4,3729.3,1.62841]
[1753548092854,2.6925,3729.4,3729.3,0.4357]
[1753548093044,0.9797,3729.3,3729.2,0.53612]
[1753548093248,2.6925,3729.3,3729.2,0.53612]
[1753548094949,2.6925,3729.3,3729.2,1.19272]
[1753548097157,2.6925,3729.3,3729.2,1.62842]
[1753548097650,2.6925,3729.3,3729.2,1.95632]
[1753548099056,0.4766,3729.3,3729.2,2.46552]
[1753548099254,0.3293,3729.5,3729.4,0.5361]
[1753548099451,1.4558,3729.7,3729.4,0.7636]
[1753548099761,1.787,3729.7,3729.6,2.46547]
[1753548099957,2.2636,3729.7,3729.6,2.46547]
[1753548100257,2.6925,3729.7,3729.6,2.46547]
[1753548100461,2.6925,3729.7,3729.6,1.95627]
[1753548101259,2.6925,3729.7,3729.6,2.46547]
[1753548103364,2.6925,3729.7,3729.6,1.95627]
[1753548103757,2.6925,3729.7,3729.6,0.97177]
[1753548106660,2.6925,3729.7,3729.6,0.53607]
[1753548112263,0.3312,3729.2,3729.1,0.3279]
[1753548112463,1.0894,3729.2,3729.1,1.52065]
[1753548112663,1.0894,3729.2,3729.1,1.19275]
[1753548112867,1.566,3729.2,3729.1,1.19275]
[1753548113063,2.6925,3729.2,3729.1,1.62845]
[1753548113463,2.6925,3729.2,3729.1,1.95635]
[1753548117473,2.6925,3729.2,3729.1,1.62845]
[1753548118167,0.4782,3729.1,3728.6,3.2078]
[1753548118472,2.7054,3728.7,3728.6,14.17392]
[1753548118871,2.7054,3728.7,3728.6,14.83522]
[1753548119969,2.7054,3728.7,3728.6,15.31742]
[1753548123763,1.6174,3728.7,3728.6,15.31742]
[1753548123967,1.2876,3728.7,3728.6,15.31742]
[1753548124469,1.6174,3728.7,3728.6,15.31742]
[1753548124675,2.7054,3728.7,3728.6,15.31742]
[1753548125575,1.6174,3728.7,3728.6,15.31742]
[1753548126276,1.2876,3728.7,3728.6,15.31742]
[1753548126576,0.4782,3728.7,3728.6,2.45542]
[1753548126870,0.4782,3728.7,3728.6,15.31642]
[1753548127076,0.9689,3728.7,3728.6,15.31642]
[1753548127877,1.6174,3728.7,3728.6,15.31642]
[1753548128674,0.9689,3729.1,3728.6,12.861]
[1753548128873,0.9689,3729.1,3729.0,1.9192]
[1753548129176,0.9689,3729.1,3729.0,2.45536]
[1753548130367,0.4782,3729.6,3729.2,1.34033]
[1753548130574,1.5486,3729.6,3729.5,1.31179]
[1753548130769,1.5486,3729.6,3729.5,1.97309]
[1753548130969,2.0393,3729.6,3729.5,1.97309]
[1753548131175,2.7054,3729.6,3729.5,1.97309]
[1753548132277,2.0393,3729.6,3729.5,2.45529]
[1753548132472,0.7969,3729.6,3729.5,2.45529]
[1753548132775,1.6174,3729.8,3729.7,2.45526]
[1753548133175,1.2876,3730.1,3729.7,2.45526]
[1753548133477,0.4782,3730.0,3729.9,1.9192]
[1753548133676,0.4782,3730.0,3729.9,2.45523]
[1753548133877,1.6174,3730.0,3729.9,2.45523]
[1753548134080,2.7054,3730.0,3729.9,2.45523]
[1753548134375,5.4913,3730.3,3730.2,1.31169]
[1753548134677,5.4913,3730.3,3730.2,2.45519]
[1753548134877,5.9132,3730.3,3730.2,2.45519]
[1753548135281,2.7054,3730.3,3730.2,2.45519]
[1753548135577,1.6174,3730.3,3730.2,2.45519]
[1753548136375,0.4782,3730.3,3730.2,2.45519]
[1753548136576,1.1392,3730.6,3730.5,1.31164]
[1753548136780,1.1392,3730.6,3730.5,2.45514]
[1753548136980,2.7054,3730.6,3730.5,2.45514]
[1753548147497,2.7054,3730.6,3730.5,1.97294]
[1753548162205,2.7054,3730.6,3730.5,2.44194]
[1753548162606,1.7215,3730.9,3730.8,1.2813]
[1753548162805,2.1955,3730.9,3730.8,2.3765]
[1753548163502,2.6291,3730.9,3730.8,2.3765]
[1753548164913,3.41636672,3730.9,3730.8,1.9075]
[1753548165111,2.6291,3730.9,3730.8,1.9075]
[1753548166410,2.6291,3730.9,3730.8,2.3765]
[1753548166809,3.41659783,3730.9,3730.8,2.3765]
[1753548167003,2.6291,3730.9,3730.8,1.3716]
[1753548167208,3.41659423,3730.9,3730.8,0.4223]
[1753548167409,3.41659423,3730.9,3730.8,0.9582]
[1753548167711,3.41659423,3730.9,3730.8,1.9075]
[1753548168303,3.41659423,3730.9,3730.8,2.3765]
[1753548168711,1.236,3730.9,3730.8,2.3765]
[1753548170914,1.7215,3731.2,3731.1,2.37646]
[1753548171113,2.94271296,3731.2,3731.1,2.37646]
[1753548171506,3.41671296,3731.2,3731.1,2.37646]
[1753548171915,1.5666,3731.1,3730.6,0.6262]
[1753548172214,2.6291,3730.7,3730.6,1.90753]
[1753548172414,2.6291,3730.7,3730.6,1.28133]
[1753548172613,2.6291,3730.7,3730.6,2.37653]
[1753548173406,1.236,3730.7,3730.6,2.37653]
[1753548173715,0.474,3731.0,3730.9,1.28129]
[1753548174015,0.474,3731.0,3730.9,2.37649]
[1753548174217,0.924,3731.0,3730.9,2.37649]
[1753548174608,0.786,3731.2,3731.1,1.28126]
[1753548174815,1.2715,3731.5,3731.4,0.85892]
[1753548175117,2.1955,3731.5,3731.4,2.37642]
[1753548175820,1.5529,3731.5,3731.4,2.37642]
[1753548176808,0.2,3731.9,3731.8,2.37636]
[1753548176809,0.962,3731.9,3731.8,2.37636]
[1753548177016,0.98682529,3731.9,3731.8,2.37636]
[1753548177222,0.2,3731.9,3731.8,2.37636]
[1753548177422,1.7431,3731.9,3731.8,2.37636]
[1753548178020,2.7227,3731.9,3731.8,2.37636]
[1753548178422,0.6646,3731.9,3731.8,2.37636]
[1753548178922,1.4243,3731.9,3731.8,2.37636]
[1753548180418,0.2,3731.9,3731.8,2.37636]
[1753548181521,0.018,3732.3,3732.2,1.2326]
[1753548181814,0.018,3732.3,3732.2,5.5083]
[1753548183121,0.4826,3732.3,3732.2,5.5083]
[1753548184228,0.018,3732.3,3732.2,5.5083]
[1753548184625,0.9279,3732.3,3732.2,5.5083]
[1753548184826,1.2423,3732.3,3732.2,2.3005]
[1753548185026,1.2423,3732.3,3732.2,5.5083]
[1753548185927,1.5635,3732.3,3732.2,5.5083]
[1753548186926,2.1517,3732.3,3732.2,5.5083]
[1753548188930,2.5431,3732.3,3732.2,5.5083]
[1753548189731,2.5431,3732.3,3732.2,2.3005]
[1753548189927,2.5431,3732.3,3732.2,5.5083]
[1753548190232,1.5635,3732.3,3732.2,5.5083]
[1753548191632,0.018,3732.3,3732.2,5.5083]
[1753548192432,0.4826,3732.3,3732.2,5.5083]
[1753548192833,0.9279,3732.3,3732.2,5.5083]
[1753548193132,0.4826,3732.3,3732.2,5.5083]
[1753548193530,0.9279,3732.3,3732.2,5.5083]
[1753548193741,2.5431,3732.3,3732.2,5.5083]
[1753548194035,2.5431,3732.3,3732.2,17.8947]
[1753548194634,1.1511,3732.8,3732.7,2.30043]
[1753548194834,2.0605,3732.8,3732.7,14.51713]
[1753548195038,2.0605,3732.8,3732.7,0.53563]
[1753548195733,0.9094,3732.7,3732.6,0.53564]
[1753548195933,0.9094,3732.7,3732.5,0.4496]
[1753548195934,2.0605,3732.7,3732.5,0.98525]
[1753548196134,2.0605,3732.6,3732.5,0.98525]
[1753548196735,2.5251,3732.6,3732.5,1.90185]
[1753548198538,2.5251,3732.6,3732.4,0.53566]
[1753548198733,2.5251,3732.3,3732.2,0.9853]
[1753548199135,2.5251,3732.3,3732.2,0.5357]
[1753548200039,2.5251,3732.3,3732.1,12.834]
[1753548200234,0.21792706,3733.6,3731.9,23.15]
[1753548200235,2.5251,3732.0,3731.9,23.15]
[1753548200448,2.5251,3732.0,3731.9,23.68574]
[1753548200639,2.5251,3732.0,3731.9,23.15]
[1753548201038,1.027,3731.8,3731.7,0.98537]
[1753548201237,2.5251,3731.8,3731.7,0.98537]
[1753548202336,2.5251,3731.8,3731.7,0.53577]
[1753548202533,1.4981,3731.7,3731.6,0.53578]
[1753548202737,2.5251,3731.7,3731.6,0.98538]
[1753548202940,1.56277,3731.7,3731.4,0.4496]
[1753548203242,2.5251,3731.3,3731.2,1.3152]
[1753548203536,2.5251,3731.3,3731.2,1.85104]
[1753548203740,2.5251,3731.3,3731.2,2.30064]
[1753548205844,2.0605,3731.3,3731.2,2.30064]
[1753548206538,2.5251,3731.3,3731.2,1.7648]
[1753548206740,2.5251,3731.3,3731.2,2.30064]
[1753548207742,2.0605,3731.3,3731.2,2.30064]
[1753548207945,0.7597,3731.3,3731.2,2.30064]
[1753548208747,2.5704,3731.3,3731.2,15.13564]
[1753548209149,2.5704,3731.3,3731.2,14.5998]
[1753548209648,2.5704,3731.3,3731.2,15.13564]
[1753548209845,2.5704,3731.3,3731.2,0.4496]
[1753548210044,2.5752,3731.0,3730.7,0.4499]
[1753548210237,1.0079,3731.0,3730.8,12.835]
[1753548210441,2.5752,3730.9,3730.8,13.8208]
[1753548210642,2.5752,3730.9,3730.8,14.7457]
[1753548210935,2.5752,3730.9,3730.8,15.174]
[1753548211552,2.1112,3730.9,3730.8,15.174]
[1753548212848,0.7645,3730.9,3730.8,15.174]
[1753548213147,1.6512,3731.2,3731.1,1.26576]
[1753548213338,1.6512,3731.2,3731.1,2.33896]
[1753548213541,0.3045,3731.2,3731.1,2.33896]
[1753548213738,0.7645,3731.2,3731.1,2.33896]
[1753548214748,1.4078,3731.2,3731.1,2.33896]
[1753548214940,2.1112,3731.2,3731.1,2.33896]
[1753548217142,2.5752,3731.2,3731.1,2.33896]
[1753548221753,1.8786,3731.1,3731.0,12.835]
[1753548222058,2.5752,3731.1,3731.0,12.835]
[1753548222257,2.5752,3731.1,3731.0,13.82077]
[1753548222445,2.5752,3731.1,3731.0,14.12237]
[1753548222851,2.5752,3731.1,3731.0,1.91067]
[1753548223055,2.5752,3731.1,3731.0,2.33897]
[1753548223456,2.5752,3731.1,3731.0,5.54677]
[1753548223757,2.1112,3731.1,3731.0,5.54677]
[1753548224050,1.1566,3731.4,3731.3,2.33893]
[1753548224253,1.1566,3731.7,3731.6,1.26569]
[1753548224554,3.2078,3732.6,3732.3,0.53569]
[1753548224743,1.6512,3732.1,3732.0,4.47343]
[1753548225047,1.6512,3732.1,3732.0,5.54663]
[1753548225252,2.1112,3732.1,3732.0,5.54663]
[1753548225556,2.5752,3732.1,3732.0,2.33883]
[1753548226057,2.5752,3732.1,3732.0,5.54663]
[1753548226252,1.0079,3732.1,3731.8,0.4499]
[1753548226556,2.5752,3731.9,3731.8,0.7515]
[1753548226760,2.5752,3731.9,3731.8,1.28726]
[1753548227053,2.5752,3731.9,3731.8,2.33886]
[1753548228654,2.5752,3731.9,3731.8,1.71556]
[1753548229349,2.5752,3731.9,3731.8,2.33886]
[1753548229855,2.5752,3731.9,3731.8,0.7515]
[1753548230354,2.5752,3731.9,3731.8,1.28726]
[1753548231250,2.5752,3731.9,3731.8,2.33886]
[1753548233458,2.5752,3731.9,3731.8,1.8031]
[1753548233654,1.5673,3731.8,3731.6,0.53577]
[1753548233858,2.5752,3731.7,3731.6,0.4499]
[1753548234155,3.11097,3731.7,3731.6,0.4499]
[1753548234350,2.5752,3731.7,3731.6,0.4499]
[1753548234552,1.0079,3731.7,3731.4,1.0732]
[1753548234852,2.5752,3731.4,3731.3,0.53583]
[1753548235355,2.5752,3731.4,3731.3,1.28733]
[1753548236058,2.5752,3731.4,3731.3,1.91063]
[1753548236754,3.11102,3731.4,3731.3,0.4499]
[1753548236955,2.5752,3731.4,3731.3,0.7515]
[1753548237154,2.5752,3731.4,3731.3,1.3738]
[1753548237554,2.5752,3731.4,3731.3,1.90963]
[1753548237755,2.5752,3731.4,3731.3,2.30353]
[1753548242059,2.5752,3731.4,3731.3,0.98573]
[1753548242260,3.11102,3731.4,3731.3,0.7361]
[1753548242562,2.5752,3731.4,3731.3,2.28813]
[1753548242763,3.11102,3731.4,3731.3,1.13]
[1753548242962,3.11102,3731.4,3731.3,0.4499]
[1753548243163,2.5752,3731.4,3731.3,0.4499]
[1753548243362,2.5752,3731.4,3731.3,0.98573]
[1753548243864,2.5752,3731.4,3731.3,2.28813]
[1753548245965,3.11102,3731.4,3731.3,1.13]
[1753548246261,2.5752,3731.4,3731.3,0.98573]
[1753548246654,2.5752,3731.4,3731.3,1.89423]
[1753548246954,2.5752,3731.4,3731.3,2.28813]
[1753548251469,3.11102,3731.4,3731.3,0.7361]
[1753548251766,3.11102,3731.4,3731.3,0.98573]
[1753548251963,2.5752,3731.4,3731.3,0.98573]
[1753548252568,2.5752,3731.4,3731.3,1.89423]
[1753548253377,3.11102,3731.4,3731.3,0.4499]
[1753548253566,3.07515,3731.2,3731.1,0.4712]
[1753548253767,4.54729,3731.6,3730.8,0.9085]
[1753548253768,0.991,3730.9,3730.8,0.9085]
[1753548253966,2.5393,3730.9,3730.8,1.3024]
[1753548254368,3.07519,3730.9,3730.8,1.7736]
[1753548255072,3.86307835,3730.9,3730.8,0.4712]
[1753548255268,0.83023,3730.6,3730.5,1.3024]
[1753548255472,3.07523,3730.6,3730.5,1.3024]
[1753548256072,3.07523,3730.6,3730.5,1.7736]
[1753548257062,3.07523,3730.6,3730.5,0.7574]
[1753548257464,3.07526,3730.4,3730.3,0.4712]
[1753548258170,3.07526,3730.4,3730.3,0.7574]
[1753548258968,1.52699,3730.2,3730.1,1.3797]
[1753548259173,3.07529,3730.2,3730.1,1.3797]
[1753548259374,3.07529,3730.2,3730.1,1.7736]
[1753548261074,3.07529,3730.2,3730.1,1.1513]
[1753548261669,3.07529,3730.2,3730.1,0.4712]
[1753548262773,2.5393,3730.0,3729.8,0.1983994]
[1753548263076,3.07533,3729.9,3729.8,0.6695994]
[1753548263275,3.07533,3729.9,3729.8,0.9557994]
[1753548263475,3.07533,3729.9,3729.8,0.6695994]
[1753548263670,2.5393,3729.6,3729.5,1.7736]
[1753548263869,5.7471,3729.6,3729.5,1.7736]
[1753548264172,6.28317,3729.6,3729.5,1.7736]
[1753548264474,5.7471,3729.6,3729.5,2.30969]
[1753548265271,6.28317,3729.6,3729.5,1.7736]
[1753548265569,5.7471,3729.6,3729.5,2.30969]
[1753548266274,5.7471,3729.6,3729.5,1.7736]
[1753548266772,5.7471,3729.6,3729.5,2.30969]
[1753548268476,5.2806,3729.6,3729.5,2.30969]
[1753548269478,0.733,3729.9,3729.8,0.6789]
[1753548269669,0.4422,3730.1,3730.0,0.53602]
[1753548269867,1.3451,3730.3,3730.2,1.21489]
[1753548270174,1.3451,3730.3,3730.2,2.24009]
[1753548270781,2.0474,3730.3,3730.2,2.24009]
[1753548272079,2.0474,3730.3,3729.0,2.68075]
[1753548272080,0.733,3730.7,3730.3,0.6789]
[1753548272278,0.733,3730.9,3730.8,0.5873]
[1753548272581,3.02799,3730.9,3730.8,1.7041]
[1753548272982,3.02799,3730.9,3730.8,0.4379]
[1753548275576,3.02799,3730.9,3730.8,1.4113]
[1753548276079,3.02799,3730.9,3730.8,0.824]
[1753548278282,3.02799,3730.9,3730.8,1.1168]
[1753548278588,3.02799,3730.9,3730.8,1.7041]
[1753548279377,3.02799,3730.9,3730.8,0.7307]
[1753548279581,3.02799,3730.9,3730.3,0.53597]
[1753548279582,0.53592,3730.7,3730.6,0.5873]
[1753548279783,3.02802,3730.7,3730.6,1.318]
[1753548279983,3.02802,3730.7,3730.6,1.7041]
[1753548280989,2.4921,3730.7,3730.6,1.7041]
[1753548281178,2.0474,3730.7,3730.6,1.7041]
[1753548281377,2.58332,3730.7,3730.6,2.24003]
[1753548281690,2.0474,3730.7,3730.6,2.24003]
[1753548281879,2.58332,3730.7,3730.6,1.7041]
[1753548282187,3.02802,3730.7,3730.6,1.7041]
[1753548282689,3.02804,3730.5,3730.4,0.7307]
[1753548282988,7.02227065,3730.5,3730.4,0.7307]
[1753548283883,7.02227065,3730.5,3730.4,1.318]
[1753548284291,3.0281,3730.1,3730.0,1.7041]
[1753548285484,6.2359,3730.1,3730.0,0.4379]
[1753548286288,6.2359,3730.1,3730.0,0.7307]
[1753548286488,6.2359,3730.1,3730.0,1.7041]
[1753548286898,5.6999,3730.1,3730.0,2.24012]
[1753548287587,6.2359,3730.1,3730.0,2.24012]
[1753548287886,5.2552,3730.1,3730.0,2.24012]
[1753548288086,3.9408,3730.1,3730.0,2.24012]
[1753548288287,2.0474,3730.4,3730.3,1.21487]
[1753548288492,1.93495097,3730.4,3730.3,2.24007]
[1753548288693,1.1481,3730.4,3730.3,2.24007]
[1753548289088,1.7602,3730.4,3730.3,2.24007]
[1753548289285,0.536,3730.1,3730.0,0.5873]
[1753548289483,3.0281,3730.1,3730.0,1.7041]
[1753548290888,2.4921,3730.1,3730.0,1.7041]
[1753548291093,0.733,3730.1,3730.0,2.24012]
[1753548291390,0.2908,3730.4,3730.3,2.24007]
[1753548291593,3.2078,3730.6,3730.5,2.24004]